fUSD/lending_fUSD_20260207
["ID","MTS","AMOUNT","RATE_DAILY","PERIOD"]
[404682625,1770438638306,-823.53,0.00011637,2]
[404682626,1770438638316,-823.53,0.00011659,2]
[404682627,1770438638325,-823.53,0.0001168,2]
[404682628,1770438638335,-823.53,0.00011701,2]
[404682629,1770438638344,-166.66,0.00011716,2]
[404682630,1770438638353,-823.53,0.00011723,2]
[404682631,1770438638371,-823.53,0.00011744,2]
[404682632,1770438638389,-823.53,0.00011766,2]
[404682633,1770438638401,-269.75013364,0.00011787,2]
[404682634,1770438638419,-500.0,0.00011787,2]
[404682635,1770438638431,-53.77986636,0.00011787,2]
[404682636,1770438638440,-823.53,0.00011808,2]
[404682638,1770438638450,-152.59,0.00011817,2]
[404682640,1770438638459,-20.10013364,0.0001183,2]
[404682643,1770438638474,-281.89643883,0.0001183,2]
[404682734,1770438640379,-521.53342753,0.0001183,2]
[404682735,1770438640389,-823.53,0.00011851,2]
[404682736,1770438640398,-823.53,0.00011873,2]
[404682737,1770438640407,-823.53,0.00011894,2]
[404682738,1770438640416,-823.53,0.00011915,2]
[404682739,1770438640425,-823.53,0.00011937,2]
[404682740,1770438640434,-500.0,0.00011951,2]
[404682741,1770438640443,-166.66,0.00011953,2]
[404682742,1770438640452,-823.53,0.00011958,2]
[404682743,1770438640462,-823.53,0.0001198,2]
[404682744,1770438640471,-823.53,0.00012001,2]
[404682745,1770438640480,-823.53,0.00012022,2]
[404682746,1770438640490,-166.66,0.00012189,2]
[404682747,1770438640499,-255.0,0.00012285,2]
[404682748,1770438640508,-379.0,0.00012308,2]
[404682749,1770438640517,-6837.02839242,0.0001231,2]
[404682750,1770438640527,-195.0,0.00012352,2]
[404682751,1770438640535,-195.0,0.00012352,2]
[404682752,1770438640545,-1852.42,0.00012386,2]
[404682753,1770438640554,-151.0,0.00012402,2]
[404682754,1770438640563,-151.0,0.00012402,2]
[404682755,1770438640572,-166745.74,0.00012409,2]
[404682756,1770438640581,-396.55,0.0001241,2]
[404682757,1770438640591,-166.66,0.00012426,2]
[404682758,1770438640600,-224.16,0.00012466,2]
[404682759,1770438640609,-485.53,0.00012469,2]
[404682760,1770438640618,-379.0,0.00012473,2]
[404682761,1770438640628,-158.43,0.00012492,2]
[404682762,1770438640637,-500.0,0.00012492,2]
[404682763,1770438640646,-193.1584119,0.00012703,2]
[404682765,1770438640655,-1773.96532894,0.00012832,2]
[404682767,1770438640665,-405.89892305,0.00012858,2]
[404682768,1770438640677,-6837.0283924,0.00012931,2]
[404682770,1770438640686,-38265.75247919,0.0001294,2]
[404682772,1770438640696,-174.41,0.00013,2]
[404682774,1770438640707,-16805.02128614,0.00013064,2]
[404682776,1770438640716,-1839.8707263,0.00013091,2]
[404682778,1770438640725,-171.0,0.000131,2]
[404682780,1770438640734,-379.0,0.00013121,2]
[404682782,1770438640743,-396.88027589,0.00013122,2]
[404682784,1770438640753,-46828.54,0.00013123,2]
[404682786,1770438640762,-150.0,0.0001316,2]
[404682788,1770438640771,-1218.37,0.00013164,2]
[404682790,1770438640781,-150.0,0.00013184,2]
[404682793,1770438640790,-379.0,0.00013204,2]
[404682794,1770438640800,-251.65169828,0.00013204,2]
[404682796,1770438640809,-284.14671465,0.00013215,2]
[404682797,1770438640818,-500.0,0.00013264,2]
[404682798,1770438640827,-2757.6756095,0.00013273,2]
[404682799,1770438640836,-1201.9893174,0.00013273,2]
[404682800,1770438640845,-14782.6607303,0.00013273,2]
[404682801,1770438640855,-43115.08812,0.00013273,2]
[404682802,1770438640864,-379.0,0.00013295,2]
[404682803,1770438640873,-716.08175449,0.00013296,2]
[404682804,1770438640882,-374.84705995,0.00013331,2]
[404682805,1770438640891,-383.0,0.00013402,2]
[404682806,1770438640899,-391.0,0.00013418,2]
[404682807,1770438640909,-3240.0,0.00013425,2]
[404682808,1770438640918,-379.0,0.00013434,2]
[404682809,1770438640931,-433.0,0.00013441,2]
[404682810,1770438640939,-154.60638359,0.00013473,2]
[404682811,1770438640949,-151.0,0.00013496,2]
[404682812,1770438640958,-1500.0,0.000135,2]
[404682813,1770438640967,-6837.0283924,0.00013552,2]
[404682814,1770438640975,-1773.96532887,0.00013556,2]
[404682815,1770438640994,-200.0,0.00013585,2]
[404682816,1770438641004,-383.0,0.00013597,2]
[404682817,1770438641014,-16805.02128609,0.00013601,2]
[404682818,1770438641023,-379.0,0.00013604,2]
[404682819,1770438641036,-379.0,0.00013638,2]
[404682820,1770438641045,-379.0,0.00013654,2]
[404682821,1770438641055,-200.0,0.00013662,2]
[404682822,1770438641065,-14698.89,0.00013699,2]
[404682823,1770438641074,-200.0,0.00013699,2]
[404682824,1770438641083,-7882.73,0.00013699,2]
[404682825,1770438641093,-822.71,0.00013699,2]
[404682826,1770438641102,-511.17251501,0.00013699,2]
[404682827,1770438641112,-501.58342039,0.00013699,2]
[404682828,1770438641121,-500.83175848,0.00013699,2]
[404682829,1770438641131,-500.71876563,0.00013699,2]
[404682830,1770438641140,-500.96112568,0.00013699,2]
[404682831,1770438641150,-501.34047747,0.00013699,2]
[404682832,1770438641159,-502.51898619,0.00013699,2]
[404682833,1770438641169,-501.56384225,0.00013699,2]
[404682834,1770438641178,-500.87567623,0.00013699,2]
[404682835,1770438641188,-501.66346895,0.00013699,2]
[404682836,1770438641198,-501.0806738,0.00013699,2]
[404682837,1770438641208,-500.75477963,0.00013699,2]
[404682838,1770438641217,-500.71966823,0.00013699,2]
[404682839,1770438641227,-500.9102189,0.00013699,2]
[404682840,1770438641236,-555.01216598,0.00013699,2]
[404682841,1770438641246,-501.03785696,0.00013699,2]
[404682842,1770438641256,-500.75752829,0.00013699,2]
[404682843,1770438641266,-500.0,0.00013699,2]
[404682844,1770438641275,-500.82365782,0.00013699,2]
[404682845,1770438641287,-500.44572838,0.00013699,2]
[404682846,1770438641297,-327.45326444,0.00013699,2]
[404682847,1770438641307,-502.71573821,0.00013699,2]
[404682848,1770438641316,-500.82082584,0.00013699,2]
[404682849,1770438641325,-501.54780201,0.00013699,2]
[404682850,1770438641335,-500.53646167,0.00013699,2]
[404682851,1770438641344,-500.85471823,0.00013699,2]
[404682852,1770438641354,-500.0,0.00013699,2]
[404682853,1770438641363,-375.92,0.00013699,2]
[404682854,1770438641373,-379.0,0.00013704,2]
[404682855,1770438641382,-666.0,0.00013709,2]
[404682856,1770438641391,-7554.2339471,0.0001371,2]
[404682857,1770438641400,-1000.0,0.00013714,2]
[404682858,1770438641409,-869.6,0.00013795,2]
[404682859,1770438641419,-1500.0,0.000138,2]
[404682860,1770438641428,-379.0,0.00013811,2]
[404682861,1770438641438,-379.0,0.00013815,2]
[404682862,1770438641447,-387.0,0.00013898,2]
[404682863,1770438641456,-701.11486,0.0001392,2]
[404682864,1770438641466,-701.11487,0.0001392,2]
[404682865,1770438641475,-200.0,0.00013924,2]
[404682866,1770438641484,-200.0,0.00013939,2]
[404682867,1770438641494,-701.11487,0.0001394,2]
[404682868,1770438641503,-701.11487,0.0001394,2]
[404682869,1770438641512,-701.11487,0.0001394,2]
[404682870,1770438641522,-701.11487,0.0001394,2]
[404682871,1770438641531,-375.92,0.00013973,2]
[404682872,1770438641540,-200.0,0.00014064,2]
[404682873,1770438641549,-869.6,0.00014069,2]
[404682874,1770438641559,-160.0,0.00014073,2]
[404682875,1770438641568,-16805.02128609,0.00014139,2]
[404682876,1770438641577,-200.0,0.00014159,2]
[404682877,1770438641586,-200.0,0.00014163,2]
[404682878,1770438641596,-6837.0283924,0.00014173,2]
[404682879,1770438641605,-1500.0,0.000142,2]
[404682880,1770438641615,-375.92,0.00014247,2]
[404682881,1770438641624,-1773.96532887,0.0001428,2]
[404682882,1770438641633,-869.6,0.00014343,2]
[404682883,1770438641643,-152.0,0.00014363,4]
[404682884,1770438641655,-822.71,0.00014384,2]
[404682885,1770438641664,-9251.92,0.00014504,2]
[404682886,1770438641677,-12352.82,0.00014504,2]
[404682887,1770438641687,-10778.06,0.00014504,2]
[404682888,1770438641696,-375.92,0.00014521,2]
[404682889,1770438641705,-1500.0,0.000146,2]
[404682890,1770438641720,-869.6,0.00014617,2]
[404682891,1770438641729,-1201.9893174,0.00014656,2]
[404682892,1770438641739,-16805.02128609,0.00014676,2]
[404682893,1770438641749,-1839.8707263,0.00014688,2]
[404682894,1770438641758,-488.0,0.00014699,2]
[404682895,1770438641767,-6837.0283924,0.00014794,2]
[404682896,1770438641776,-375.92218695,0.00014795,2]
[404682897,1770438641786,-200.0,0.00014805,2]
[404682898,1770438641796,-1218.37,0.0001481,2]
[404682899,1770438641805,-250.0,0.00014837,2]
[404682900,1770438641814,-200.0,0.00014879,2]
[404682901,1770438641823,-451.34,0.00014891,2]
[404682902,1770438641833,-200.0,0.00014905,2]
[404682903,1770438641842,-150.22,0.00014999,2]
[404682904,1770438641851,-2052.99200849,0.00015,2]
[404682905,1770438641860,-7992.53693611,0.00015,2]
[404682906,1770438641870,-250.0,0.00015,2]
[404682907,1770438641879,-1773.96532887,0.00015004,2]
[404682908,1770438641889,-822.71,0.00015068,2]
[404682909,1770438641899,-200.0,0.00015095,2]
[404682910,1770438641909,-1500.0,0.000151,2]
[404682911,1770438641918,-209.40437684,0.00015109,2]
[404682912,1770438641927,-200.0,0.00015117,2]
[404682913,1770438641936,-217.15233878,0.00015164,2]
[404682914,1770438641946,-16805.02128609,0.00015213,2]
[404682915,1770438641955,-225.18697532,0.00015219,2]
[404682916,1770438641965,-171.0,0.00015262,2]
[404682917,1770438641974,-233.51889341,0.00015274,2]
[404682918,1770438641983,-666.0,0.00015309,2]
[404682919,1770438641992,-9999.99,0.0001531,2]
[404682920,1770438642002,-242.15909246,0.00015329,2]
[404682921,1770438642011,-251.11897888,0.00015384,2]
[404682922,1770438642020,-6837.0283924,0.00015416,2]
[404682923,1770438642030,-1000.0,0.00015429,2]
[404682924,1770438642039,-4049.0,0.00015439,2]
[404682925,1770438642049,-260.4103811,0.00015439,2]
[404682926,1770438642058,-270.0455652,0.00015494,2]
[404682927,1770438642067,-1500.0,0.000155,2]
[404682928,1770438642076,-280.03725112,0.00015549,2]
[404682929,1770438642085,-485.53,0.00015571,2]
[404682930,1770438642095,-224.16,0.00015573,2]
[404682931,1770438642104,-716.08175448,0.00015598,2]
[404682932,1770438642114,-290.39862941,0.00015604,2]
[404682933,1770438642124,-301.1433787,0.00015659,2]
[404682934,1770438642133,-1773.96532887,0.00015728,2]
[404682935,1770438642143,-16805.02128609,0.00015751,2]
[404682936,1770438642152,-822.71,0.00015753,2]
[404682937,1770438642162,-158.43,0.00015754,2]
[404682938,1770438642171,-152.0,0.00015769,5]
[404682939,1770438642181,-2242.91870603,0.00015807,2]
[404682940,1770438642190,-1685.5774304,0.00015826,2]
[404682941,1770438642199,-1685.0,0.000159,2]
[404682942,1770438642209,-3320.29284267,0.00016,2]
[404682943,1770438642218,-6837.0283924,0.00016037,2]
[404682944,1770438642227,-1201.9893174,0.00016039,2]
[404682945,1770438642236,-3298.4574561,0.00016054,2]
[404682946,1770438642246,-453.527216,0.00016093,7]
[404682947,1770438642256,-9620.276517,0.00016182,2]
[404682948,1770438642266,-5000.00589016,0.000162,5]
[404682949,1770438642275,-1839.8707263,0.00016285,2]
[404682950,1770438642285,-16805.02128609,0.00016288,2]
[404682951,1770438642295,-376.1031619,0.00016298,2]
[404682952,1770438642304,-224.14,0.00016416,2]
[404682953,1770438642314,-822.71,0.00016438,2]
[404682954,1770438642323,-800.0,0.00016438,2]
[404682955,1770438642334,-1000.0,0.00016438,2]
[404682956,1770438642343,-1773.96532887,0.00016452,2]
[404682957,1770438642352,-1218.37,0.00016456,2]
[404682958,1770438642362,-323.67,0.00016487,2]
[404682959,1770438642371,-153.58,0.00016648,2]
[404682960,1770438642380,-6837.0283924,0.00016658,2]
[404682961,1770438642389,-735.9853404,0.00016675,2]
[404682962,1770438642398,-1000.0,0.00016712,2]
[404682963,1770438642407,-165.79,0.00016712,2]
[404682964,1770438642416,-16805.02128609,0.00016825,2]
[404682965,1770438642425,-2146.5738399,0.00016831,2]
[404682966,1770438642435,-1000.0,0.00016986,2]
[404682967,1770438642444,-295.95172949,0.0001699,2]
[404682968,1770438642454,-300.0,0.00016999,2]
[404682969,1770438642466,-666.0,0.00016999,2]
[404682970,1770438642475,-500.0,0.00017,2]
[404682971,1770438642485,-633911.69810731,0.00017,2]
[404682972,1770438642494,-300.0,0.00017,2]
[404682973,1770438642503,-151.0,0.00017,2]
[404682974,1770438642512,-151.0,0.00017,2]
[404682975,1770438642522,-151.0,0.00017,2]
[404682976,1770438642533,-152.384454,0.00017,2]
[404682977,1770438642542,-151.0,0.00017,2]
[404682978,1770438642552,-151.0,0.00017,2]
[404682979,1770438642561,-151.0,0.00017,2]
[404682980,1770438642570,-156.938742,0.00017,2]
[404682981,1770438642580,-151.0,0.00017,2]
[404682982,1770438642590,-156.901904,0.00017,2]
[404682983,1770438642599,-156.901904,0.00017,2]
[404682984,1770438642609,-156.901904,0.00017,2]
[404682985,1770438642618,-156.901904,0.00017,2]
[404682986,1770438642628,-741.839244,0.00017,2]
[404682987,1770438642637,-741.839244,0.00017,2]
[404682988,1770438642647,-741.839244,0.00017,2]
[404682989,1770438642656,-741.839244,0.00017,2]
[404682990,1770438642669,-163.0,0.0001704,2]
[404682991,1770438642678,-237.30690274,0.00017043,2]
[404682992,1770438642688,-3255.0,0.00017101,2]
[404682993,1770438642697,-412.0,0.00017101,2]
[404682994,1770438642707,-6584.0,0.00017101,2]
[404682995,1770438642716,-1000.0,0.00017143,2]
[404682996,1770438642726,-152.0,0.00017175,6]
[404682997,1770438642735,-1773.96532887,0.00017176,2]
[404682998,1770438642746,-1000.0,0.0001726,2]
[404682999,1770438642756,-6837.0283924,0.00017279,2]
[404683000,1770438642765,-16805.02128609,0.00017363,2]
[404683001,1770438642775,-347.912,0.000174,2]
[404683002,1770438642785,-4199.452,0.000174,2]
[404683003,1770438642794,-1201.9893174,0.00017423,2]
[404683004,1770438642803,-485.53,0.00017433,2]
[404683005,1770438642813,-224.16,0.00017443,2]
[404683006,1770438642823,-237.30690274,0.00017472,2]
[404683007,1770438642832,-720.07142971,0.00017534,2]
[404683008,1770438642841,-1000.0,0.00017534,2]
[404683009,1770438642851,-150.0,0.00017595,2]
[404683010,1770438642860,-213.0,0.00017595,2]
[404683011,1770438642870,-150.197,0.00017595,2]
[404683012,1770438642879,-150.233,0.00017595,2]
[404683013,1770438642888,-150.0,0.00017595,2]
[404683014,1770438642897,-150.0,0.00017595,2]
[404683015,1770438642906,-150.125,0.00017595,2]
[404683016,1770438642915,-150.0,0.00017595,2]
[404683017,1770438642925,-150.0,0.00017595,2]
[404683019,1770438642934,-151.0,0.00017595,2]
[404683021,1770438642944,-150.203,0.00017595,2]
[404683023,1770438642953,-1728.27374882,0.0001764,2]
[404683025,1770438642962,-783.19290883,0.000177,2]
[404683027,1770438642972,-152.59,0.00017725,2]
[404683029,1770438642981,-158.43,0.00017752,2]
[404683031,1770438642991,-5507.2,0.00017808,2]
[404683033,1770438643000,-150.0,0.00017808,2]
[404683034,1770438643009,-1000.0,0.00017808,2]
[404683035,1770438643018,-200.0,0.00017856,2]
[404683036,1770438643027,-1002.67095229,0.0001786,2]
[404683037,1770438643038,-150.0,0.00017863,2]
[404683038,1770438643047,-1839.8707263,0.00017881,2]
[404683039,1770438643236,-5422.33030715,0.00017899,2]
[404683040,1770438643246,-5422.33030711,0.00017899,2]
[404683041,1770438643256,-5422.33030711,0.00017899,2]
[404683042,1770438643266,-5422.33030711,0.000179,2]
[404683043,1770438643276,-5422.33030711,0.000179,2]
[404683044,1770438643285,-500.0,0.000179,2]
[404683045,1770438643294,-716.08175448,0.000179,2]
[404683046,1770438643304,-18283.15527785,0.000179,3]
[404683047,1770438643314,-193.1584119,0.000179,2]
[404683048,1770438643324,-1650.0,0.000179,3]
[404683049,1770438643334,-237.30690274,0.000179,2]
[404683050,1770438643344,-10000.0,0.000179,2]
[404683051,1770438643354,-6837.0283924,0.000179,2]
[404683052,1770438643363,-16805.02128609,0.000179,2]
[404683053,1770438643372,-23406.27909928,0.000179,2]
[404683054,1770438643381,-1590.80562284,0.000179,3]
[404683055,1770438643391,-3339.69026102,0.000179,2]
[404683056,1770438643400,-5422.33030711,0.000179,2]
[404683057,1770438643409,-500.0,0.000179,2]
[404683058,1770438643418,-500.0,0.000179,2]
[404683059,1770438643427,-500.0,0.000179,2]
[404683060,1770438643436,-500.0,0.000179,2]
[404683061,1770438643445,-500.0,0.000179,2]
[404683062,1770438643454,-500.0,0.000179,2]
[404683063,1770438643463,-500.0,0.000179,2]
[404683064,1770438643472,-444.30041557,0.000179,2]
[404683065,1770438643481,-203.91426758,0.00017918,2]
[404683066,1770438643491,-484.42085053,0.00017956,2]
[404683067,1770438643500,-481.99323194,0.00017957,2]
[404683068,1770438643510,-121109.1440103,0.0001799,3]
[404683069,1770438643519,-295.95172949,0.0001799,2]
[404683070,1770438643528,-295.95172949,0.0001799,2]
[404683071,1770438643538,-11717.69002207,0.00017999,2]
[404683072,1770438643547,-150.0,0.00017999,2]
[404683073,1770438643556,-300.0,0.00017999,2]
[404683074,1770438643565,-300.0,0.00017999,2]
[404683075,1770438643575,-300.0,0.00017999,2]
[404683076,1770438643583,-300.0,0.00017999,2]
[404683077,1770438643593,-666.0,0.00017999,2]
[404683078,1770438643603,-300.0,0.00017999,2]
[404683079,1770438643613,-300.0,0.00017999,2]
[404683080,1770438643623,-666.0,0.00017999,2]
[404683081,1770438643632,-300.0,0.00017999,2]
[404683082,1770438643641,-485581.07902694,0.00018,2]
[404683099,1770438646178,-403.4799995,0.00012082,2]
[404683100,1770438646190,-96.5200005,0.00012082,2]
[404683101,1770438646199,-1773.96532887,0.000179,2]
[404683102,1770438646208,-10139.30629413,0.00018,2]
[404683103,1770438646219,-7579.7470919,0.00018,2]
[404683104,1770438646230,-6143.539541,0.00018,2]
[404683105,1770438646241,-2184.88167343,0.00018,2]
[404683106,1770438646252,-5596.4442397,0.00018,2]
[404683107,1770438646263,-3978.77963428,0.00018,2]
[404683108,1770438646275,-364.2285993,0.00018,2]
[404683109,1770438646293,-5536.31568212,0.00018,2]
[404683110,1770438646304,-2140.84999,0.00018,2]
[404683114,1770438646442,-1764694.80660806,0.00018,2]
[404683115,1770438646453,-426.0,0.00018,2]
[404683116,1770438646464,-7569.31608332,0.00018,2]
[404683117,1770438646475,-300.74830632,0.00018,2]
[404683118,1770438646486,-2764.5,0.00018,2]
[404683398,1770438912523,-276.0,9.392e-05,2]
[404683399,1770438912551,-1200.0,9.392e-05,2]
[404683401,1770438975084,-300.0,9.392e-05,2]
[404683422,1770439037062,-300.0,9.392e-05,2]
[404683466,1770439208147,-559.0,9.392e-05,2]
[404683467,1770439223605,-227.0,9.393e-05,2]
[404683469,1770439278122,1000.0,0.00035616,120]
[404683470,1770439350348,500.43,0.00035616,120]
[404683471,1770439457556,266.85,0.00035589,120]
[404683472,1770439535116,413.0,0.00035616,120]
[404683479,1770439831284,-500.0,9.393e-05,2]
[404683480,1770439831293,-22.43722123,9.393e-05,2]
[404683481,1770439831393,-477.56277877,9.393e-05,2]
[404683482,1770439831405,-500.0,9.393e-05,2]
[404683483,1770439831424,-500.0,9.393e-05,2]
[404683484,1770439831443,-607.48017178,9.393e-05,2]
[404683485,1770439831453,-500.0,9.393e-05,2]
[404683486,1770439831462,-500.0,9.393e-05,2]
[404683487,1770439831472,-500.32773818,9.393e-05,2]
[404683488,1770439831482,-500.0,9.393e-05,2]
[404683489,1770439831491,-500.0,9.393e-05,2]
[404683490,1770439831500,-500.0,9.393e-05,2]
[404683491,1770439831510,-500.0,9.393e-05,2]
[404683492,1770439831519,-500.0,9.393e-05,2]
[404683493,1770439831528,-166.51358966,9.393e-05,2]
[404683494,1770439831538,-500.89849545,9.393e-05,2]
[404683495,1770439831548,-169.79228934,9.393e-05,2]
[404683496,1770439831558,-217.81806779,9.393e-05,2]
[404683498,1770439831567,-500.0,9.393e-05,2]
[404683500,1770439831576,-188.28205428,9.393e-05,2]
[404683501,1770439831586,-504.76214666,9.393e-05,2]
[404683502,1770439831595,-500.0,9.393e-05,2]
[404683503,1770439831604,-500.0,9.393e-05,2]
[404683504,1770439831613,-500.0,9.393e-05,2]
[404683505,1770439831622,-500.0,9.393e-05,2]
[404683506,1770439831632,-939.89462943,9.941e-05,2]
[404683507,1770439837337,-381.27822225,9.941e-05,2]
[404683508,1770439837446,-385.91273512,9.941e-05,2]
[404683509,1770439837456,-90.41877641,9.941e-05,2]
[404683510,1770439837556,-770.63042929,9.941e-05,2]
[404683511,1770439837568,-138.9507943,9.941e-05,2]
[404683512,1770439837579,-1323.34156454,0.00011582,2]
[404683516,1770439839428,-383.74402226,0.00011582,2]
[404683517,1770439839438,-250.0,0.00012411,2]
[404683518,1770439839447,-1707.0855868,0.00013223,2]
[404683519,1770439839457,-160.0,0.00014243,2]
[404683520,1770439839466,-1707.0855868,0.00014864,2]
[404683521,1770439839476,-200.0,0.00016073,2]
[404683522,1770439839485,-200.0,0.00016113,2]
[404683523,1770439839494,-9139.59,0.0001612,2]
[404683524,1770439839503,-500.0,0.00016173,2]
[404683525,1770439839512,-2753.6,0.00016205,2]
[404683526,1770439839522,-1000.0,0.00016457,2]
[404683527,1770439839531,-1707.0855868,0.00016506,2]
[404683528,1770439839540,-150.0,0.00016526,2]
[404683529,1770439839549,-5529.95178195,0.00016901,2]
[404683530,1770439839590,-353.47176662,0.00016901,2]
[404683531,1770439839601,-360.42425931,0.00016901,2]
[404683532,1770439839648,-1252.91219212,0.00016901,2]
[404683534,1770439839821,-4882.1969,0.00016901,2]
[404683536,1770439839830,-2500.0,0.00016901,2]
[404683538,1770439839839,-209.40437684,0.00016981,2]
[404683540,1770439839853,-278.33,0.00017,2]
[404683542,1770439839871,-3359.562,0.00017,2]
[404683544,1770439839880,-300.0,0.00017,2]
[404683546,1770439839891,-300.0,0.00017,2]
[404683548,1770439839900,-300.0,0.00017,2]
[404683549,1770439839909,-670.3895273,0.00017,2]
[404683550,1770439839919,-300.0,0.00017,2]
[404683551,1770439839928,-3869.0,0.00017001,2]
[404683552,1770439839936,-551.37,0.00017001,2]
[404683553,1770439839946,-551.37,0.00017001,2]
[404683554,1770439839955,-551.37,0.00017001,2]
[404683555,1770439839964,-551.37,0.00017001,2]
[404683556,1770439839973,-551.37,0.00017001,2]
[404683557,1770439839982,-551.37,0.00017001,2]
[404683558,1770439839994,-551.37,0.00017001,2]
[404683559,1770439840004,-551.37,0.00017001,2]
[404683560,1770439840013,-551.37,0.00017001,2]
[404683561,1770439840022,-551.37,0.00017001,2]
[404683562,1770439840031,-551.37,0.00017001,2]
[404683563,1770439840044,-551.37,0.00017001,2]
[404683564,1770439840065,-551.37,0.00017001,2]
[404683565,1770439840084,-551.37,0.00017001,2]
[404683566,1770439840095,-551.37,0.00017001,2]
[404683567,1770439840104,-551.37,0.00017001,2]
[404683568,1770439840113,-551.37,0.00017001,2]
[404683569,1770439840124,-551.37,0.00017001,2]
[404683570,1770439840135,-551.37,0.00017001,2]
[404683571,1770439840145,-551.37,0.00017001,2]
[404683572,1770439840156,-551.37,0.00017001,2]
[404683573,1770439840165,-551.37,0.00017001,2]
[404683574,1770439840175,-551.37,0.00017001,2]
[404683575,1770439840185,-551.37,0.00017001,2]
[404683576,1770439840194,-551.37,0.00017001,2]
[404683577,1770439840203,-551.37,0.00017001,2]
[404683578,1770439840212,-551.37,0.00017001,2]
[404683579,1770439840222,-551.37,0.00017001,2]
[404683580,1770439840231,-551.37,0.00017001,2]
[404683581,1770439840240,-551.37,0.00017001,2]
[404683582,1770439840249,-551.37,0.00017001,2]
[404683583,1770439840258,-551.37,0.00017001,2]
[404683584,1770439840267,-551.37,0.00017001,2]
[404683585,1770439840276,-551.37,0.00017001,2]
[404683586,1770439840285,-551.37,0.00017001,2]
[404683587,1770439840294,-700.13,0.00017001,2]
[404683588,1770439840304,-217.15233878,0.00017036,2]
[404683589,1770439840313,-225.18697532,0.00017091,2]
[404683590,1770439840323,-206.511,0.00017101,2]
[404683591,1770439840332,-150.0,0.00017101,2]
[404683592,1770439840340,-250.0,0.00017101,2]
[404683593,1770439840349,-412.0,0.00017101,2]
[404683594,1770439840359,-6584.0,0.00017101,2]
[404683595,1770439840367,-1411.22,0.00017101,2]
[404683596,1770439840376,-300.0,0.00017135,2]
[404683597,1770439840386,-233.51889341,0.00017146,2]
[404683598,1770439840395,-242.15909246,0.00017201,2]
[404683599,1770439840405,-251.11897888,0.00017256,2]
[404683600,1770439840414,-1999.0,0.0001726,2]
[404683601,1770439840422,-260.4103811,0.00017311,2]
[404683602,1770439840432,-200.0,0.00017313,2]
[404683603,1770439840441,-815.0,0.0001736,2]
[404683604,1770439840450,-270.0455652,0.00017366,2]
[404683605,1770439840464,-280.03725112,0.00017421,2]
[404683606,1770439840476,-290.39862941,0.00017476,2]
[404683607,1770439840484,-301.1433787,0.00017531,2]
[404683608,1770439840493,-1000.0,0.00017534,2]
[404683609,1770439840503,-864.13687441,0.0001764,2]
[404683610,1770439840512,-201.07511,0.0001782,2]
[404683611,1770439840521,-201.07511,0.0001782,2]
[404683612,1770439840531,-200.0,0.00017856,2]
[404683613,1770439840540,-300.0,0.00017899,2]
[404683614,1770439840549,-300.0,0.00017899,2]
[404683615,1770439840558,-300.0,0.00017899,2]
[404683616,1770439840568,-500.0,0.000179,2]
[404683617,1770439840576,-1000.0,0.000179,2]
[404683618,1770439840585,-18167.1031597,0.000179,2]
[404683619,1770439840597,-708.0784434,0.000179,2]
[404683620,1770439840608,-81512.2335969,0.000179,2]
[404683621,1770439840618,-2617.8484,0.000179,2]
[404683622,1770439840627,-33304.9777,0.000179,2]
[404683623,1770439840636,-355.96035412,0.000179,2]
[404683624,1770439840645,-5503.29,0.0001799,2]